bitfinex/quotes_SOLUSD_20240729
["timestamp","ask_amount","ask_price","bid_price","bid_amount"]
[1722278955037,12.47,186.29,186.24,1.84122544]
[1722278955449,12.47,186.3,186.24,1.84122544]
[1722278956222,5.3671,186.32,186.24,1.84122544]
[1722278956423,12.47,186.3,186.24,45.7675215]
[1722278957552,12.47,186.3,186.25,1.07359295]
[1722278958452,12.47,186.3,186.24,45.7675215]
[1722278959057,12.47,186.31,186.24,58.2375215]
[1722278959352,12.47,186.32,186.25,13.71356858]
[1722278959526,5.3662,186.35,186.25,12.64]
[1722278959728,12.47,186.32,186.26,45.0]
[1722278959926,12.47,186.32,186.27,0.17]
[1722278960242,18.46037201,186.37,186.27,0.17]
[1722278960549,12.47,186.32,186.27,0.17]
[1722278960765,18.46037201,186.37,186.27,0.17]
[1722278960766,2.12767201,186.37,186.28,12.47]
[1722278960973,5.3654,186.38,186.28,12.47]
[1722278961172,12.47,186.36,186.29,58.71331294]
[1722278961340,12.47,186.36,186.3,1.07331333]
[1722278962338,12.47,186.36,186.29,12.47]
[1722278962543,2.11722229,186.4,186.29,12.47]
[1722278962746,12.47,186.36,186.3,45.17]
[1722278964065,12.47,186.36,186.3,51.2643]
[1722278964369,12.47,186.37,186.31,1.0732167]
[1722278964575,12.47,186.37,186.32,0.17]
[1722278964865,12.47,186.38,186.33,1.07316272]
[1722278965072,12.47,186.39,186.33,1.07316272]
[1722278965243,12.47,186.39,186.34,0.17]
[1722278967442,12.47,186.36,186.3,6.0943]
[1722278967647,12.47,186.35,186.31,1.07329819]
[1722278967850,12.47,186.34,186.3,6.0943]
[1722278969682,12.47,186.34,186.27,12.47]
[1722278969867,12.47,186.34,186.28,1.07340863]
[1722278970378,5.3655,186.38,186.29,12.47]
[1722278970379,12.47,186.35,186.29,12.47]
[1722278970549,12.47,186.35,186.3,1.07329932]
[1722278970750,29.7062,186.41,186.31,1.07329791]
[1722278970751,5.3649,186.4,186.31,1.07329791]
[1722278971083,12.47,186.38,186.32,12.64]
[1722278971376,12.47,186.38,186.33,45.0]
[1722278971671,12.47,186.38,186.34,0.17]
[1722278972583,12.47,186.37,186.34,0.17]
[1722278973068,12.47,186.36,186.29,12.47]
[1722278973270,12.47,186.36,186.3,57.64]
[1722278973574,12.47,186.37,186.31,12.47]
[1722278973751,12.47,186.38,186.32,45.17]
[1722278973957,21.6592,186.41,186.32,45.17]
[1722278973958,12.47,186.37,186.32,45.17]
[1722278975279,2.11615761,186.42,186.32,45.17]
[1722278975280,12.47,186.38,186.32,45.17]
[1722278975485,12.47,186.39,186.32,57.64]
[1722278978374,5.3645,186.41,186.32,45.17]
[1722278978375,12.47,186.38,186.32,45.17]
[1722278978568,12.47,186.35,186.26,28.06513853]
[1722278978768,12.47,186.35,186.28,12.47]
[1722278978962,12.47,186.36,186.29,12.47]
[1722278979890,12.47,186.3,186.25,29.81973853]
[1722278980065,12.47,186.33,186.26,12.47]
[1722278980253,12.47,186.34,186.27,12.47]
[1722278981261,12.47,186.35,186.28,57.64]
[1722278981456,12.47,186.35,186.29,12.47]
[1722278981660,12.47,186.35,186.3,0.17]
[1722278982501,12.47,186.35,186.29,0.17]
[1722278983167,5.3654,186.38,186.29,12.64]
[1722278983168,12.47,186.36,186.29,12.64]
[1722278983868,12.47,186.36,186.29,0.17]
[1722278985298,12.47,186.35,186.29,0.17]
[1722278985499,12.47,186.33,186.28,45.0]
[1722278985662,12.47,186.33,186.26,12.47]
[1722278985857,12.47,186.32,186.25,34.2246]
[1722278986086,12.47,186.33,186.26,12.47]
[1722278986391,12.47,186.33,186.27,13.54344684]
[1722278986596,12.47,186.33,186.27,12.47]
[1722278986991,12.47,186.33,186.26,12.64]
[1722278987620,12.47,186.34,186.27,12.47]
[1722278987892,12.47,186.34,186.28,45.17]
[1722278988276,12.47,186.33,186.28,45.17]
[1722278988590,12.47,186.33,186.28,0.17]
[1722278989193,12.47,186.34,186.28,0.17]
[1722278990087,12.47,186.32,186.25,21.7546]
[1722278990266,12.47,186.32,186.26,45.0]
[1722278990462,12.47,186.32,186.27,0.17]
[1722278993803,5.3659,186.36,186.27,0.17]
[1722278994092,12.47,186.34,186.27,12.64]
[1722278994294,12.47,186.34,186.28,1.07341099]
[1722278994480,12.47,186.35,186.28,13.54341099]
[1722278994687,12.47,186.35,186.28,1.07341099]
[1722278995018,12.47,186.34,186.28,1.07341099]
[1722278995198,12.47,186.34,186.28,13.54341099]
[1722278995597,5.3657,186.37,186.28,13.54341099]
[1722278995909,12.47,186.35,186.28,13.54341099]
[1722278996207,5.3657,186.37,186.28,13.54341099]
[1722278996208,12.47,186.34,186.28,13.54341099]
[1722278999081,12.47,186.34,186.28,1.07341099]
[1722279000107,12.47,186.34,186.27,12.64]
[1722279000309,12.47,186.33,186.27,0.17]
[1722279000681,12.47,186.33,186.27,1.24346517]
[1722279001703,5.3665,186.35,186.27,0.17]
[1722279002022,12.47,186.35,186.28,12.47]
[1722279002609,5.3655,186.38,186.3,12.47]
[1722279002917,12.47,186.37,186.31,1.07324944]
[1722279003802,12.47,186.36,186.31,1.07324944]
[1722279003996,12.47,186.37,186.31,1.07324944]
[1722279005416,12.47,186.38,186.32,0.17]
[1722279005590,12.47,186.38,186.32,1.24324991]
[1722279006298,12.47,186.38,186.33,1.07316382]
[1722279006512,12.47,186.38,186.32,0.17]
[1722279007408,12.47,186.36,186.29,12.47]
[1722279007606,12.47,186.39,186.28,8.06515462]
[1722279007798,12.47,186.39,186.27,12.47]
[1722279007799,12.47,186.34,186.27,12.47]
[1722279007998,12.47,186.35,186.28,57.47]
[1722279008196,12.47,186.35,186.28,12.47]
[1722279008607,12.47,186.35,186.26,53.06515462]
[1722279008797,12.47,186.34,186.27,12.47]
[1722279008992,12.47,186.34,186.28,45.17]
[1722279009199,12.47,186.34,186.28,0.17]
[1722279010523,12.47,186.33,186.28,0.17]
[1722279010828,12.47,186.32,186.28,0.17]
[1722279011020,12.47,186.31,186.25,29.82079919]
[1722279011822,12.47,186.31,186.25,42.29141495]
[1722279012020,12.47,186.32,186.26,13.54354083]
[1722279012221,12.47,186.34,186.27,13.54345875]
[1722279012405,12.47,186.35,186.28,12.47]
[1722279012731,12.47,186.35,186.29,1.07344856]
[1722279013030,12.47,186.34,186.27,12.47]
[1722279013414,12.47,186.34,186.28,1.07344822]
[1722279013619,12.47,186.32,186.25,29.99139022]
[1722279013813,12.47,186.32,186.26,1.0735426]
[1722279014015,12.47,186.32,186.27,1.07354106]
[1722279015113,12.47,186.32,186.28,1.07353839]
[1722279015316,12.47,186.33,186.28,1.07353839]
[1722279015516,5.3659,186.36,186.28,1.07353839]
[1722279015921,5.3659,186.36,186.27,12.47]
[1722279016239,12.47,186.34,186.28,13.54344753]
[1722279016408,12.47,186.34,186.28,1.07344753]
[1722279016847,12.47,186.33,186.27,12.47]
[1722279017141,5.366,186.36,186.29,1.07344756]
[1722279017310,12.47,186.34,186.3,1.07340214]
[1722279017515,20.5017,186.37,186.28,1.07340597]
[1722279017732,12.47,186.34,186.28,1.07340597]
[1722279018242,12.47,186.35,186.28,1.07340597]
[1722279019231,12.47,186.34,186.28,1.07340597]
[1722279020317,12.47,186.34,186.28,57.47]
[1722279020516,12.47,186.34,186.29,1.24343069]
[1722279020724,12.47,186.34,186.3,1.07335582]
[1722279020931,12.47,186.35,186.29,0.17]
[1722279021931,12.47,186.34,186.27,18.6769]
[1722279025517,12.47,186.34,186.27,6.2069]
[1722279026420,12.47,186.34,186.27,14.27356038]
[1722279026621,12.47,186.34,186.27,6.2069]
[1722279029332,16.4752,186.41,186.3,12.47]
[1722279029551,16.4752,186.41,186.32,12.47]
[1722279029722,12.47,186.39,186.33,1.07319375]
[1722279031543,21.8398,186.41,186.31,0.17]
[1722279031544,12.47,186.36,186.31,0.17]
[1722279031845,12.47,186.34,186.28,53.06643812]
[1722279032152,12.47,186.34,186.28,8.06552523]
[1722279032747,12.47,186.34,186.27,8.06552523]
[1722279032942,12.47,186.32,186.26,12.47]
[1722279033134,12.47,186.32,186.27,8.06567694]
[1722279033658,12.47,186.32,186.25,20.53567694]
[1722279033822,12.47,186.32,186.25,12.47]
[1722279034150,12.47,186.33,186.26,12.47]
[1722279035642,6.5092,186.37,186.27,12.47]
[1722279035643,12.47,186.34,186.27,12.47]
[1722279035941,12.47,186.34,186.27,13.54352685]
[1722279036326,12.47,186.34,186.27,12.47]
[1722279036519,12.47,186.32,186.25,12.47]
[1722279036726,12.47,186.32,186.24,0.7675215]
[1722279036937,12.47,186.31,186.24,0.7675215]
[1722279037137,12.47,186.31,186.24,13.2375215]
[1722279037344,12.47,186.29,186.24,0.7675215]
[1722279037548,12.47,186.3,186.24,0.7675215]
[1722279038250,12.47,186.31,186.24,13.2375215]
[1722279038740,12.47,186.31,186.25,12.47]
[1722279038946,12.47,186.31,186.24,0.7675215]
[1722279039849,12.47,186.3,186.24,0.7675215]
[1722279041429,12.47,186.31,186.25,12.47]
[1722279042150,12.47,186.33,186.26,12.47]
[1722279042948,12.47,186.32,186.25,12.47]
[1722279044155,12.47,186.31,186.24,13.4075215]
[1722279044531,12.47,186.31,186.25,12.47]
[1722279045030,12.47,186.31,186.24,0.9375215]
[1722279045233,12.47,186.31,186.25,12.47]
[1722279045452,12.47,186.31,186.24,13.4075215]
[1722279045841,12.47,186.32,186.25,12.47]
[1722279046244,12.47,186.31,186.26,1.07363741]
[1722279046553,12.47,186.31,186.24,13.4075215]
[1722279047068,12.47,186.31,186.25,1.07363594]
[1722279047251,12.47,186.31,186.24,13.4075215]
[1722279047632,16.3403,186.35,186.24,13.4075215]
[1722279047633,16.3403,186.35,186.25,12.47]
[1722279047820,12.47,186.33,186.26,58.7135203]
[1722279048030,28.8103,186.35,186.28,12.47]
[1722279048357,12.47,186.35,186.28,12.47]
[1722279048949,12.47,186.36,186.29,12.47]
[1722279049652,12.47,186.36,186.3,1.0734004]
[1722279049834,12.47,186.37,186.31,1.07340043]
[1722279050232,28.3665,186.39,186.32,12.47]
[1722279050642,12.47,186.38,186.31,12.64]
[1722279051625,12.47,186.37,186.31,12.64]
[1722279051863,12.47,186.37,186.31,0.17]
[1722279052059,12.47,186.38,186.31,57.64]
[1722279053754,28.3665,186.39,186.32,12.47]
[1722279055164,12.47,186.38,186.31,57.64]
[1722279057265,12.47,186.38,186.32,12.47]
[1722279057762,12.47,186.39,186.32,12.47]
[1722279058055,12.47,186.38,186.32,12.47]
[1722279058549,12.47,186.38,186.31,57.64]
[1722279060334,12.47,186.38,186.32,1.07317176]
[1722279060542,12.47,186.39,186.33,1.07314146]
[1722279061552,12.47,186.39,186.32,12.47]
[1722279061851,12.47,186.38,186.31,57.64]
[1722279062072,12.47,186.37,186.31,0.17]
[1722279065055,12.47,186.35,186.26,8.0654006]
[1722279065260,12.47,186.35,186.28,12.47]
[1722279065433,12.47,186.33,186.26,12.47]
[1722279065762,16.4269,186.38,186.29,12.47]
[1722279065970,16.4269,186.38,186.3,12.47]
[1722279065971,12.47,186.37,186.3,12.47]
[1722279066149,28.8969,186.38,186.31,12.47]
[1722279066968,12.47,186.37,186.3,12.64]
[1722279069275,16.4269,186.38,186.3,0.17]
[1722279069276,12.47,186.36,186.3,0.17]
[1722279069481,12.47,186.36,186.3,45.17]
[1722279069648,12.47,186.36,186.3,0.17]
[1722279070174,12.47,186.35,186.3,0.17]
[1722279070374,12.47,186.35,186.29,45.17]
[1722279070875,12.47,186.33,186.26,12.47]
[1722279071445,5.3665,186.35,186.25,12.47]
[1722279071770,12.47,186.31,186.24,29.6369215]
[1722279072176,12.47,186.32,186.25,12.47]
[1722279072483,12.47,186.33,186.26,12.47]
[1722279074251,12.47,186.34,186.27,12.47]
[1722279074453,12.47,186.34,186.28,12.64]
[1722279075758,12.47,186.35,186.28,12.64]
[1722279076164,12.47,186.34,186.28,12.64]
[1722279077776,12.47,186.33,186.28,0.17]
[1722279077951,12.47,186.33,186.27,45.0]
[1722279078152,12.47,186.33,186.26,12.64]
[1722279078486,12.47,186.33,186.27,0.17]
[1722279078983,12.47,186.33,186.26,12.47]
[1722279079353,12.47,186.32,186.26,12.47]
[1722279079561,12.47,186.33,186.26,12.47]
[1722279080486,12.47,186.32,186.25,12.64]
[1722279084556,12.47,186.29,186.24,0.7675215]
[1722279085975,12.47,186.28,186.24,0.7675215]
[1722279089792,12.47,186.27,186.24,0.7675215]
[1722279091495,12.47,186.26,186.24,0.7675215]
[1722279094471,12.47,186.25,186.24,0.7675215]
[1722279102672,17.8391,186.25,186.24,0.7675215]
[1722279102877,5.3696,186.24,186.12,22.3688]
[1722279103069,12.47,186.21,186.14,12.47]
[1722279103377,12.47,186.24,186.17,12.47]
[1722279103587,12.47,186.24,186.18,1.07405444]
[1722279105188,12.47,186.22,186.15,12.47]
[1722279105399,12.47,186.22,186.16,0.17]
[1722279105913,12.47,186.22,186.16,13.71409368]
[1722279106286,12.47,186.23,186.16,13.71409368]
[1722279108215,12.47,186.22,186.16,1.24409368]
[1722279108698,12.47,186.22,186.16,0.17]
[1722279109106,12.47,186.22,186.16,1.24409329]
[1722279109493,12.47,186.22,186.16,13.71409329]
[1722279109690,16.4978,186.29,186.16,13.71409329]
[1722279109691,12.47,186.24,186.18,12.47]
[1722279109905,12.47,186.24,186.19,1.07401437]
[1722279110812,12.47,186.24,186.18,1.07405041]
[1722279111488,12.47,186.23,186.18,1.07405041]
[1722279111804,12.47,186.23,186.17,1.07405043]
[1722279112002,12.47,186.23,186.19,1.07405043]
[1722279112184,12.47,186.23,186.17,1.07405214]
[1722279112385,12.47,186.23,186.18,1.07405891]
[1722279112904,12.47,186.21,186.16,0.17]
[1722279113090,12.47,186.21,186.12,22.3688]
[1722279113091,12.47,186.21,186.14,12.47]
[1722279113407,12.47,186.21,186.15,0.17]
[1722279115017,16.4978,186.29,186.16,12.47]
[1722279115018,12.47,186.23,186.16,12.47]
[1722279115192,12.47,186.23,186.17,0.17]
[1722279115392,12.47,186.23,186.17,1.2440657]
[1722279115908,12.47,186.22,186.15,12.47]
[1722279116109,12.47,186.22,186.16,45.17]
[1722279116515,12.47,186.22,186.17,1.07412487]
[1722279116687,12.47,186.22,186.18,1.07408698]
[1722279116892,12.47,186.22,186.16,0.17]
[1722279117794,12.47,186.22,186.16,1.24412298]
[1722279120500,12.47,186.22,186.16,1.07412298]
[1722279121817,12.47,186.22,186.15,0.17]
[1722279122010,5.3697,186.23,186.15,0.17]
[1722279122011,12.47,186.23,186.16,12.47]
[1722279122315,12.47,186.23,186.15,57.64]
[1722279122533,12.47,186.22,186.16,1.07413004]
[1722279123813,12.47,186.22,186.16,13.54413004]
[1722279124122,12.47,186.23,186.16,13.54413004]
[1722279124719,12.47,186.23,186.15,57.64]
[1722279124913,12.47,186.22,186.16,0.17]
[1722279125220,12.47,186.22,186.16,1.24412457]
[1722279127105,12.47,186.22,186.16,0.17]
[1722279127419,12.47,186.21,186.14,12.47]
[1722279127600,12.47,186.21,186.15,0.17]
[1722279129512,12.47,186.2,186.15,0.17]
[1722279129904,12.47,186.2,186.14,0.17]
[1722279130104,12.47,186.2,186.13,45.17]
[1722279131401,12.47,186.2,186.13,57.64]
[1722279131718,19.00732014,186.28,186.14,12.47]
[1722279131719,12.47,186.21,186.14,12.47]
[1722279131911,12.47,186.21,186.15,0.17]
[1722279132420,12.47,186.2,186.14,0.17]
[1722279133528,12.47,186.21,186.14,13.71420805]
[1722279133704,12.47,186.22,186.15,57.47]
[1722279133904,12.47,186.22,186.16,1.07413454]
[1722279134331,12.47,186.21,186.14,12.64]
[1722279134502,12.47,186.21,186.15,45.0]
[1722279135407,29.9177,186.29,186.12,22.3688]
[1722279135408,12.47,186.2,186.12,22.3688]
[1722279135616,12.47,186.2,186.13,12.47]
[1722279135815,12.47,186.2,186.14,1.07425474]
[1722279136520,12.47,186.2,186.12,34.8388]
[1722279136521,12.47,186.2,186.13,12.47]
[1722279136719,12.47,186.21,186.14,12.47]
[1722279136918,12.47,186.2,186.13,12.47]
[1722279137404,12.47,186.2,186.14,0.17]
[1722279144822,12.47,186.19,186.13,1.07435514]
[1722279145021,12.47,186.2,186.13,1.07435514]
[1722279145536,12.47,186.19,186.13,1.07435514]
[1722279147632,12.47,186.2,186.13,1.07435514]
[1722279149529,12.47,186.18,186.12,22.5388]
[1722279149711,12.47,186.18,186.13,0.17]
[1722279150434,12.47,186.18,186.13,1.24427834]
[1722279150637,16.2043,186.23,186.13,12.64]
[1722279150941,16.2043,186.23,186.13,20.71241925]
[1722279150942,12.47,186.21,186.13,20.71241925]
[1722279151111,12.47,186.21,186.14,45.0]
[1722279151310,12.47,186.21,186.15,0.17]
[1722279153838,21.2666,186.27,186.15,20.7116242]
[1722279154137,12.47,186.22,186.16,45.0]
[1722279154323,12.47,186.22,186.17,0.17]
[1722279155332,16.4081,186.32,186.19,8.07137173]
[1722279155542,12.47,186.28,186.21,12.47]
[1722279155725,12.47,186.28,186.22,0.17]
[1722279156041,12.47,186.28,186.22,1.24372573]
[1722279156424,12.47,186.29,186.22,58.71372573]
[1722279158941,12.47,186.29,186.22,13.71372573]
[1722279159148,12.47,186.29,186.22,12.64]
[1722279159448,12.47,186.28,186.22,0.17]
[1722279159675,12.47,186.28,186.22,1.07376544]
[1722279159953,12.47,186.28,186.23,0.17]
[1722279160123,12.47,186.28,186.23,1.24367235]
[1722279160734,12.47,186.3,186.23,12.64]
[1722279160926,12.47,186.31,186.24,57.47]
[1722279161130,12.47,186.31,186.25,0.17]
[1722279161333,12.47,186.3,186.25,0.17]
[1722279161952,12.47,186.3,186.24,57.47]
[1722279162143,12.47,186.3,186.23,0.17]
[1722279162454,12.47,186.3,186.23,21.24370728]
[1722279163324,12.47,186.3,186.24,45.0]
[1722279163529,12.47,186.3,186.25,0.17]
[1722279163954,12.47,186.3,186.25,1.24360827]
[1722279164151,12.47,186.31,186.25,1.24360827]
[1722279165629,12.47,186.31,186.25,0.17]
[1722279165931,12.47,186.31,186.25,1.24359886]
[1722279166128,12.47,186.31,186.25,0.17]
[1722279167738,12.47,186.31,186.25,1.2436042]
[1722279167936,12.47,186.31,186.25,0.17]
[1722279168634,12.47,186.31,186.25,1.24360447]
[1722279168834,12.47,186.31,186.25,0.17]
[1722279169037,12.47,186.31,186.25,1.24360447]
[1722279169951,12.47,186.32,186.25,13.71360447]
[1722279170160,12.47,186.32,186.25,12.64]
[1722279170962,12.47,186.27,186.18,22.0179]
[1722279171146,12.47,186.27,186.2,12.47]
[1722279173759,12.47,186.27,186.19,1.07389369]
[1722279173959,12.47,186.27,186.2,12.47]
[1722279174336,12.47,186.27,186.21,1.07394422]
[1722279174537,12.47,186.27,186.21,13.54394422]
[1722279175259,12.47,186.27,186.2,12.47]
[1722279175476,12.47,186.27,186.21,1.07389326]
[1722279176054,12.47,186.27,186.2,12.47]
[1722279177667,12.47,186.27,186.21,1.07389342]
[1722279178370,12.47,186.27,186.2,12.47]
[1722279178874,12.47,186.27,186.19,0.17]
[1722279179179,12.47,186.26,186.19,57.64]
[1722279179564,5.368,186.29,186.19,57.64]
[1722279179565,12.47,186.25,186.19,0.17]
[1722279180375,12.47,186.25,186.18,34.4879]
[1722279180675,12.47,186.24,186.13,36.6385]
[1722279180873,12.47,186.24,186.17,12.47]
[1722279181258,12.47,186.24,186.18,1.07407603]
[1722279182271,12.47,186.24,186.18,1.07409949]
[1722279182673,12.47,186.24,186.17,1.47]
[1722279182981,12.47,186.24,186.18,1.07411326]
[1722279183484,12.47,186.24,186.17,1.47]
[1722279183778,12.47,186.24,186.15,1.074102]
[1722279183979,12.47,186.24,186.17,12.47]
[1722279184287,12.47,186.24,186.18,1.07409399]
[1722279185171,12.47,186.24,186.17,12.47]
[1722279185356,12.47,186.23,186.16,12.47]
[1722279185874,12.47,186.23,186.17,1.07411654]
[1722279186254,12.47,186.23,186.16,12.47]
[1722279187681,12.47,186.23,186.16,13.54411666]
[1722279188685,12.47,186.23,186.15,1.07408372]
[1722279188884,12.47,186.23,186.15,13.54408372]
[1722279189588,12.47,186.23,186.16,12.64]
[1722279189789,12.47,186.23,186.17,1.0740834]
[1722279190586,12.47,186.22,186.16,0.17]
[1722279190976,12.47,186.22,186.16,1.24413318]
[1722279191181,12.47,186.23,186.16,58.71413318]
[1722279191486,12.47,186.23,186.16,45.17]
[1722279191656,12.47,186.23,186.17,1.07412732]
[1722279193183,12.47,186.23,186.16,0.17]
[1722279193391,12.47,186.23,186.16,1.24412225]
[1722279195676,12.47,186.22,186.16,1.24412225]
[1722279196059,12.47,186.23,186.16,1.24412225]
[1722279197391,12.47,186.23,186.16,0.17]
[1722279197691,12.47,186.23,186.16,1.24412359]
[1722279197875,12.47,186.23,186.15,12.47]
[1722279198073,12.47,186.21,186.14,20.17]
[1722279198377,12.47,186.21,186.15,0.17]
[1722279198763,12.47,186.2,186.15,0.17]
[1722279198978,12.47,186.2,186.14,20.0]
[1722279199183,12.47,186.19,186.13,16.6385]
[1722279200192,12.47,186.2,186.13,29.1085]
[1722279200362,12.47,186.21,186.14,12.47]
[1722279200560,12.47,186.21,186.15,1.07425735]
[1722279200792,12.47,186.22,186.15,13.54425735]
[1722279201302,12.47,186.21,186.15,1.07425735]
[1722279201862,12.47,186.21,186.13,29.1085]
[1722279202094,12.47,186.2,186.13,29.1085]
[1722279202390,12.47,186.21,186.13,29.1085]
[1722279202598,12.47,186.2,186.13,29.1085]
[1722279203692,12.47,186.2,186.13,16.6385]
[1722279203878,12.47,186.2,186.13,29.1085]
[1722279204079,5.3697,186.23,186.14,1.07430247]
[1722279204080,12.47,186.21,186.14,1.07430247]
[1722279204274,12.47,186.21,186.15,1.07427427]
[1722279204490,21.7482,186.25,186.15,1.07427427]
[1722279204491,12.47,186.22,186.15,12.47]
[1722279206576,12.47,186.22,186.14,57.64]
[1722279206776,12.47,186.21,186.15,0.17]
[1722279207078,12.47,186.21,186.14,45.17]
[1722279207384,12.47,186.21,186.14,57.64]
[1722279207891,12.47,186.21,186.15,1.07420446]
[1722279208492,12.47,186.21,186.14,57.64]
[1722279209202,12.47,186.21,186.14,45.17]
[1722279209994,12.47,186.2,186.14,45.17]
[1722279212677,12.47,186.21,186.14,57.64]
[1722279213020,12.47,186.21,186.15,1.07420465]
[1722279213381,12.47,186.21,186.14,57.64]
[1722279216000,12.47,186.2,186.14,45.17]
[1722279217008,12.47,186.2,186.14,0.17]
[1722279217198,12.47,186.2,186.13,16.6385]
[1722279217508,12.47,186.2,186.13,29.1085]
[1722279217683,12.47,186.2,186.13,16.6385]
[1722279217885,12.47,186.2,186.14,1.07429227]
[1722279218102,12.47,186.2,186.15,1.07431499]
[1722279218304,12.47,186.2,186.13,16.6385]
[1722279218480,16.3789,186.25,186.13,16.6385]
[1722279218481,12.47,186.18,186.13,16.6385]
[1722279218681,12.47,186.18,186.12,6.4748]
[1722279218682,12.47,186.18,186.12,6.3048]
[1722279219984,12.47,186.17,186.12,6.3048]
[1722279220296,12.47,186.17,186.1,20.54278659]
[1722279220508,12.47,186.17,186.11,20.17]
[1722279220895,12.47,186.17,186.11,20.0]
[1722279221090,12.47,186.17,186.12,1.07443072]
[1722279221300,12.47,186.18,186.12,1.07443072]
[1722279222105,12.47,186.18,186.11,32.47]
[1722279222310,12.47,186.18,186.12,0.17]
[1722279222991,12.47,186.18,186.1,12.47]
[1722279223515,12.47,186.13,186.11,1.07446301]
[1722279223822,49.88,186.21,186.09,24.45718386]
[1722279223823,12.47,186.15,186.09,16.214]
[1722279224483,12.47,186.15,186.09,17.28859884]
[1722279226496,12.47,186.15,186.09,16.214]
[1722279226809,12.47,186.15,186.09,17.28859759]
[1722279228108,12.47,186.15,186.09,16.214]
[1722279228413,12.47,186.15,186.09,17.28857062]
[1722279228707,12.47,186.15,186.09,16.214]
[1722279230312,12.47,186.16,186.09,16.214]
[1722279230489,12.47,186.15,186.09,16.214]
[1722279231410,17.19183994,186.19,186.1,1.07459732]
[1722279231608,15.0243,186.19,186.09,16.214]
[1722279231813,12.47,186.15,186.1,0.17]
[1722279233111,12.47,186.15,186.09,16.214]
[1722279233890,12.47,186.15,186.09,17.2885074]
[1722279238526,12.47,186.14,186.09,17.2885074]
[1722279238823,12.47,186.14,186.09,16.214]
[1722279239030,12.47,186.14,186.09,17.28862721]
[1722279239404,12.47,186.13,186.09,16.214]
[1722279240829,12.47,186.14,186.09,16.214]
[1722279246800,15.0243,186.19,186.05,8.84190509]
[1722279247000,12.47,186.12,186.06,0.17]
[1722279248304,12.47,186.12,186.05,0.7675215]
[1722279248712,12.47,186.12,186.05,1.84237201]
[1722279249530,12.47,186.12,186.05,0.7675215]
[1722279253726,12.47,186.1,186.05,0.7675215]
[1722279253927,12.47,186.1,186.05,1.84235763]
[1722279254447,6.5237,186.23,186.09,12.47]
[1722279254753,12.47,186.17,186.09,12.47]
[1722279254943,12.47,186.21,186.1,0.17]